Cogmind - Beta 16 @@@ ROGUE MODE // 2026.01.31 @ 12:14:04 Player: beans Result: Destroyed by D-53 Grenadier with Mini Grenade Launcher Performance ------------- Evolutions (2) 1000 Regions Visited (5) 1000 Robots Destroyed (148) 740 Value Destroyed (3201) 3201 Prototype IDs (3) 60 Alien Tech Used (0) 0 Bonus (963) 963 TOTAL SCORE: 6964 Bonus ------- High Alert Combat Kills 263 Entered Garrisons 200 Used RIF Installer 500 Cogmind --------- Core Integrity 0/550 Matter 290/300 Energy 100/100 System Corruption 4% Temperature Cool (8) Movement Core (50) Location -8/Garrison Parts ------- > --- POWER (1) -------- (None) > --- PROPULSION (2) --- (None) > --- UTILITY (5) ------ Signal Interpreter Target Analyzer Hacking Suite > --- WEAPON (3) ------- Particle Gun > --- INVENTORY (5) ---- Aluminum Leg Improved Aluminum Leg Sensor Array Hellfire Trap Peak State ------------ > --- POWER ------------ Cooled Ion Engine > --- PROPULSION ------- Aluminum Leg Aluminum Leg > --- UTILITY ---------- Signal Interpreter Target Analyzer Improved Propulsion Shielding Improved Light Armor Plating Hacking Suite > --- WEAPON ----------- Shotgun Shotgun Shotgun > --- INVENTORY -------- Cooled Ion Engine Sensor Array Improved EM Shotgun Improved EM Shotgun Shock Rifle [Rating: 25] Favorites ----------- Power Cooled Ion Engine Engine Cooled Ion Engine Power Core Light Nuclear Core Propulsion Light Treads Treads Light Treads Leg Aluminum Leg Utility Hacking Suite Device Sensor Array Processor Signal Interpreter Hackware Hacking Suite Protection Improved Light Armor Plating Weapon Grenade Launcher Energy Gun Improved EM Shotgun Ballistic Gun Shotgun Ballistic Cannon Light Cannon Launcher Grenade Launcher Build | -11 -10 -9 -9 -8 -8 ------- Run | Yrd Mat Mat Min Mat Gar Slots Evolved 4 | . . 2 . 2 . Power . | . . . . . . Propulsion . | . . . . . . Utility 3 | . . 1 . 2 . Weapon 1 | . . 1 . . . Parts Attached 45 | 5 12 13 . 3 12 Power 4 | 1 . 1 . . 2 Engine 3 | 1 . 1 . . 1 Core 1 | . . . . . 1 Reactor . | . . . . . . Propulsion 10 | 2 2 2 . . 4 Treads 2 | . 2 . . . . Leg 8 | 2 . 2 . . 4 Wheel . | . . . . . . Hover . | . . . . . . Flight . | . . . . . . Utility 8 | . 3 3 . 1 1 Device 1 | . . 1 . . . Storage . | . . . . . . Processor 3 | . 1 1 . . 1 Hackware 1 | . 1 . . . . Protection 3 | . 1 1 . 1 . Artifact . | . . . . . . Weapon 23 | 2 7 7 . 2 5 Energy Gun 8 | . 1 5 . . 2 Energy Cannon . | . . . . . . Ballistic Gun 10 | 2 1 2 . 2 3 Ballistic Cannon 1 | . 1 . . . . Launcher 4 | . 4 . . . . Special Weapon . | . . . . . . Impact Weapon . | . . . . . . Slashing Weapon . | . . . . . . Piercing Weapon . | . . . . . . Special Melee Weapon . | . . . . . . Unidentified Prototypes 3 | . . 3 . . . Parts Lost 29 | . 7 5 . . 17 Power 3 | . 1 . . . 2 Propulsion 8 | . 2 1 . . 5 Utility 4 | . 1 1 . . 2 Weapon 14 | . 3 3 . . 8 Highest Loss Streak 6 | . 2 2 . . 6 To Critical Strikes . | . . . . . . Average Backups 4 | . 4 4 5 4 3 Power . | . . . 1 1 . Propulsion . | . . . . . . Utility 1 | . 1 1 2 1 . Weapon 2 | . 2 1 2 2 1 Tool/Special . | . . . . . . Unused Backups 4 | . 1 2 . . 1 Power . | . . . . . . Propulsion 2 | . 1 . . . 1 Utility 1 | . . 1 . . . Weapon . | . . . . . . Tool/Special 1 | . . 1 . . . Average Slot Usage (%) 74 | . 72 73 100 90 79 Engine 3 | . 1 8 11 9 8 Treads 15 | . 21 2 . . . Leg 5 | . 2 6 22 18 14 Processor 8 | . 5 13 11 9 17 Hackware 12 | . 13 11 11 9 9 Protection 1 | . . . 11 13 6 Energy Gun 5 | . 3 12 22 4 7 Ballistic Gun 8 | . 5 8 11 22 15 Ballistic Cannon 2 | . 2 6 . . . Launcher 9 | . 13 1 . . . Peak Build Rating 25 | 5 9 22 21 22 25 Average Rating 10 | 2 7 14 21 21 20 On Entrance 12 | . 5 7 21 21 22 Avg Prop Armor Cover (%) . | . . . . . . Naked Turns . | . . . . . . Heaviest Build 23 | 7 12 20 20 23 23 Greatest Support 40 | 20 40 20 20 20 30 Greatest Overweight (x) 5 | . . 5 . 1 4 Average Overweight (x) . | . . 1 . . . Largest Inventory Capacity 5 | 5 5 5 5 5 5 Average Capacity 5 | 5 5 5 5 5 5 Most Carried 5 | 5 5 5 5 5 5 Average Carried 4 | 1 4 4 5 3 4 Final Capacity 5 | 5 5 5 5 5 5 Final Carried 5 | . 5 5 5 3 4 Class Distribution -------------------- 74% | Mutant 8% | Scavenger-Gunner 5% | Scavenger-Tank 4% | Scavenger-Mutant 4% | Skirmisher Dominant Class ---------------- Mutant | -10/Materials Mutant | -9/Materials Tank | -9/Mines Skirmisher | -8/Materials Scavenger-Gunner | -8/Garrison Resources | -11 -10 -9 -9 -8 -8 ----------- Run | Yrd Mat Mat Min Mat Gar Matter Collected 3174 | 168 1960 316 4 . 726 Remotely . | . . . . . . Salvage Created 4947 | . 3007 885 55 . 1000 Parts 374 | . 271 41 1 . 61 Haulers Intercepted 5 | . 2 3 . . . Recyclers Shooed 13 | . 12 1 . . . Parts Field Recycled . | . . . . . . Retrieved Matter . | . . . . . . Parts Self-Destructed . | . . . . . . Prevented . | . . . . . . Parts Restored . | . . . . . . Kills | -11 -10 -9 -9 -8 -8 ------- Run | Yrd Mat Mat Min Mat Gar Combat Hostiles Destroyed 76 | . 37 15 . . 24 Guns 34 | . 1 11 . . 22 Cannons 3 | . . 3 . . . AOE 39 | . 36 1 . . 2 Classes Destroyed 14 | . 10 3 . . 1 Worker 50 | . 47 3 . . . Builder 35 | . 35 . . . . Tunneler 2 | . 2 . . . . Hauler 5 | . 2 3 . . . Recycler 14 | . 13 . 1 . . Mechanic 1 | . 1 . . . . Operator 3 | . 3 . . . . Watcher 4 | . 3 1 . . . Swarmer 17 | . 10 . . . 7 Grunt 49 | . 27 12 . . 10 Brawler 2 | . . 1 . . 1 Duelist 2 | . . 1 . . 1 Sentry 3 | . . 1 . . 2 Programmer 3 | . . . . . 3 Best Kill Streak 6 | . 6 4 1 . 5 Combat Bots Only 6 | . 6 3 . . 5 Max Kills in Single Turn 4 | . 4 2 1 . 2 Gunslinging . | . . . . . . Exploded 3 | . 3 1 . . 2 Melee . | . . . . . . Uniques/NPCs Destroyed . | . . . . . . Combat | -11 -10 -9 -9 -8 -8 -------- Run | Yrd Mat Mat Min Mat Gar Hostile Shots Fired 299 | . 103 51 . . 145 Missed 73 | . 31 11 . . 31 Hits 226 | . 72 40 . . 114 Melee 7 | . . 2 . . 5 Projectile 219 | . 72 38 . . 109 AOE 12 | . . . . . 12 Critical Strikes 7 | . . . . . 7 Actively Blocked 1 | . . . . . 1 Damage Taken 3787 | . 1122 509 . . 2156 Core 827 | . 205 67 . . 555 Absorbed by Shields 37 | . . . . . 37 Redirected to Shielding 116 | . . . . . 116 Regen/Repaired (Parts) 161 | . 161 . . . . Core Remaining (%) 67 | 100 18 . 83 . . Volleys Fired 420 | . 284 39 1 . 96 Largest 3 | . 2 3 3 . 3 Hottest 135 | . 70 135 113 . 113 Shots Fired 724 | . 398 93 3 . 230 Gun 507 | . 205 69 3 . 230 Cannon 89 | . 69 20 . . . Launcher 128 | . 124 4 . . . Special . | . . . . . . Kinetic 374 | . 172 34 1 . 167 Thermal 36 | . . 1 . . 35 Explosive 128 | . 124 4 . . . Electromagnetic 186 | . 102 54 2 . 28 Robot Hit Streak 10 | . 7 7 2 . 10 Robot Miss Streak 7 | . 5 4 2 . 7 Penetration Max . | . . . . . . Secondary Targets 8 | . . 1 . . 7 Max Gunslinging Chain 1 | . . 1 . . 1 Shots Hit Robots 349 | . 161 64 1 . 123 Core Hits 294 | . 190 42 2 . 60 Critical Kills 3 | . . . . . 3 Critical Parts Destroyed 6 | . . 1 . . 5 Critical Strikes 16 | . 5 2 . . 9 Burn 1 | . . . . . 1 Destroy 9 | . . 1 . . 8 Blast 3 | . 2 1 . . . Corrupt 3 | . 3 . . . . Melee Attacks . | . . . . . . Impact . | . . . . . . Slashing . | . . . . . . Piercing . | . . . . . . Sneak Attacks . | . . . . . . Combat Hostiles . | . . . . . . Follow-up Attacks . | . . . . . . Damage Inflicted 9899 | . 6676 1230 22 . 1971 Guns 4021 | . 1305 799 22 . 1895 Cannons 797 | . 591 206 . . . Explosions 5077 | . 4780 225 . . 72 Melee . | . . . . . . Ramming 4 | . . . . . 4 Kinetic 3005 | . 1166 320 . . 1519 Thermal 620 | . 244 105 . . 271 Explosive 4671 | . 4536 135 . . . Electromagnetic 1599 | . 730 670 22 . 177 Impact . | . . . . . . Slashing . | . . . . . . Piercing . | . . . . . . Highest Corruption 4 | . . . . . 4 Average Corruption 3 | . . . . . 3 Corruption Purged . | . . . . . . Corruption Blocked . | . . . . . . Effects 38 | . . . . . 38 Message Errors 7 | . . . . . 7 Matter Fused 8 | . . . . . 8 Heat Flow Errors 6 | . . . . . 6 Energy Discharges 4 | . . . . . 4 Parts Rejected 2 | . . . . . 2 Data Loss (minor) 8 | . . . . . 8 Data Loss (major) 2 | . . . . . 2 Misfires 1 | . . . . . 1 Overload Shots . | . . . . . . Overflow Damage 124 | . 124 . . . . Projectiles 2 | . 2 . . . . Explosions 122 | . 122 . . . . Melee . | . . . . . . Knockbacks 6 | . 4 2 . . . Impact . | . . . . . . Kinetic 6 | . 4 2 . . . Secondary . | . . . . . . Self-Inflicted Damage 433 | . 383 5 . . 45 Shots 24 | . 22 1 . . 1 Rammed . | . . . . . . Targets Rammed . | . . . . . . Kicked . | . . . . . . Crushed . | . . . . . . Highest Temperature 302 | . 27 302 42 . 252 Average Temperature 58 | . 9 94 26 . 57 Received Heat Transfer 1074 | . 315 225 . . 534 Siege Activations . | . . . . . . Martial Activations . | . . . . . . Shielding Activations . | . . . . . . Robots Disrupted . | . . . . . . Combat Hostiles . | . . . . . . Robots Corrupted . | . . . . . . Combat Hostiles . | . . . . . . Parts Fried 3 | . 3 . . . . Impact Corruptions . | . . . . . . Robots Melted . | . . . . . . Combat Hostiles . | . . . . . . Parts Melted . | . . . . . . Heat Transferred 976 | . 200 187 . . 589 Parts Sabotaged . | . . . . . . Parts Stolen . | . . . . . . Parts Stripped . | . . . . . . Power Chain Reactions 7 | . 5 1 . . 1 Alert | -11 -10 -9 -9 -8 -8 ------- Run | Yrd Mat Mat Min Mat Gar Maximum Alert Level 4 | . 4 2 1 . 3 Low Security (%) 15 | 100 12 . . 100 26 Level 1 21 | . 27 . 100 . 11 Level 2 35 | . 21 100 . . 56 Level 3 14 | . 19 . . . 5 Level 4 12 | . 18 . . . . Level 5 . | . . . . . . High Security . | . . . . . . Max Security . | . . . . . . Peak Influence 1281 | . 1281 668 257 94 705 Initial 540 | . . 540 257 94 54 Average 553 | . 608 551 252 89 416 Influence Increases 3377 | . 2166 425 5 . 781 Destroy 0b10 Robot/C 1520 | . 740 300 . . 480 Destroy 0b10 Robot/NC 580 | . 530 35 5 . 10 Destroy Leader 278 | . 190 58 . . 30 Successful Hack 20 | . 8 . . . 12 Select Force Hacks 50 | . 50 . . . . Disable Machine 105 | . 105 . . . . Anti-Garrison Action 150 | . . . . . 150 Destroy Structure 599 | . 528 32 . . 39 Lose Combat Pursuer 75 | . 15 . . . 60 Influence Decreases 2712 | . 885 1045 424 158 200 Entered New Map 1323 | . . 741 404 148 30 Time Decay 949 | . 665 254 20 10 . Lost Part 290 | . 70 50 . . 170 Purge Threat 150 | . 150 . . . . Squads Dispatched 13 | . 12 1 . . . Investigation 11 | . 11 . . . . Extermination . | . . . . . . Reinforcement 2 | . 1 1 . . . Assault . | . . . . . . Garrison . | . . . . . . Intercept . | . . . . . . Searches Triggered . | . . . . . . Construction Impeded 1 | . . 1 . . . Haulers Reinforced . | . . . . . . Active Scanning Responses . | . . . . . . Cargo Convoy Interrupts . | . . . . . . Stealth | -11 -10 -9 -9 -8 -8 --------- Run | Yrd Mat Mat Min Mat Gar Distress Signals 4 | . 2 2 . . . Communications Jammed . | . . . . . . Distress Signals . | . . . . . . Times Spotted 102 | . 54 19 . . 29 Peak Tracking Total 6 | . 6 4 . . 5 Tactical Retreats 4 | . 1 . . . 3 Traps | -11 -10 -9 -9 -8 -8 ------- Run | Yrd Mat Mat Min Mat Gar Traps Triggered 11 | . 4 . . . 7 Indirectly . | . . . . . . Trap Hack Attempts . | . . . . . . Triggered . | . . . . . . Disarmed . | . . . . . . Reprogrammed . | . . . . . . Reused . | . . . . . . Traps Extracted . | . . . . . . Installed 1 | . . . . . 1 Triggered . | . . . . . . Most Traps Carried 2 | . . . . . 2 Machines | -11 -10 -9 -9 -8 -8 ---------- Run | Yrd Mat Mat Min Mat Gar Machines Disabled 8 | . 7 . . . 1 Max in Single Turn 1 | . 1 . . . 1 Garrison Relay 1 | . . . . . 1 Machines Repaired . | . . . . . . Machines Dismantled . | . . . . . . Machines Sabotaged 1 | . 1 . . . . Overloaded Fab Kills . | . . . . . . Hacking | -11 -10 -9 -9 -8 -8 --------- Run | Yrd Mat Mat Min Mat Gar Machines Accessed 11 | . 9 . . 1 1 Terminals 8 | . 7 . . . 1 Fabricators . | . . . . . . Repair Stations 1 | . 1 . . . . Recycling Units 1 | . 1 . . . . Scanalyzers . | . . . . . . Garrison Access 1 | . . . . 1 . Total Hacks 30 | . 27 . . 2 1 Successful 20 | . 18 . . 1 1 Failed 10 | . 9 . . 1 . Catastrophic 1 | . 1 . . . . Database Lockouts . | . . . . . . Manual 8 | . 8 . . . . Terminals 21 | . 20 . . . 1 Fabricators . | . . . . . . Repair Stations 4 | . 4 . . . . Recycling Units 3 | . 3 . . . . Scanalyzers . | . . . . . . Garrison Access 2 | . . . . 2 . Terminal Hacks 12 | . 11 . . . 1 Record 5 | . 5 . . . . Part Schematic 1 | . 1 . . . . Alert Level 2 | . 2 . . . . Unreport Threat 1 | . 1 . . . . Transport Status 1 | . 1 . . . . Zone Layout 1 | . 1 . . . . Patrol Navigation 1 | . . . . . 1 Fabricator Hacks . | . . . . . . Repair Station Hacks 4 | . 4 . . . . Scan Component 2 | . 2 . . . . Repair 2 | . 2 . . . . Recycling Unit Hacks 1 | . 1 . . . . Process 1 | . 1 . . . . Scanalyzer . | . . . . . . Garrison Access Hacks 1 | . . . . 1 . Unlock Access 1 | . . . . 1 . Unauthorized Hacks 2 | . 2 . . . . Terminals 2 | . 2 . . . . Sabotage 2 | . 2 . . . . Fabricators . | . . . . . . Repair Stations . | . . . . . . Recycling Units . | . . . . . . Scanalyzers . | . . . . . . Garrison Access . | . . . . . . Data Cores Recovered 2 | . 2 . . . . Used . | . . . . . . Hacking Detections 9 | . 7 . . 1 1 Full Trace Events 7 | . 7 . . . . Feedback Events . | . . . . . . Feedback Blocked . | . . . . . . Robot Schematics Acquired . | . . . . . . Robots Built . | . . . . . . Authchips . | . . . . . . Time . | . . . . . . Total Robot Build Rating . | . . . . . . Part Schematics Acquired 1 | . 1 . . . . Parts Built . | . . . . . . Authchips . | . . . . . . Time . | . . . . . . Total Part Build Rating . | . . . . . . Part Studies Acquired . | . . . . . . Parts Repaired 2 | . 2 . . . . Time 52 | . 52 . . . . Parts Recycled . | . . . . . . Recycled Matter 94 | . 94 . . . . Retrieved Matter . | . . . . . . Retrieved Components . | . . . . . . Parts Scanalyzed . | . . . . . . Part Schematics Acquired . | . . . . . . Parts Damaged . | . . . . . . Bothacking | -11 -10 -9 -9 -8 -8 ------------ Run | Yrd Mat Mat Min Mat Gar Used RIF Installer 1 | . . . . . 1 Robots Hacked . | . . . . . . Non-combat . | . . . . . . Combat . | . . . . . . Robot Hacks Applied . | . . . . . . Relay Couplers Released 3 | . . . . . 3 Machine Destruction 3 | . . . . . 3 Fabnet Peak Effective % . | . . . . . . Robots Rewired . | . . . . . . Allies Hacked . | . . . . . . Hacks Repelled . | . . . . . . Allies | -11 -10 -9 -9 -8 -8 -------- Run | Yrd Mat Mat Min Mat Gar Total Allies . | . . . . . . Largest Group . | . . . . . . Highest-Rated Group . | . . . . . . Highest-Rated Ally . | . . . . . . Total Orders . | . . . . . . Ally Attacks . | . . . . . . Total Damage . | . . . . . . Kills . | . . . . . . Allies Corrupted . | . . . . . . Allies Melted . | . . . . . . Intel | -11 -10 -9 -9 -8 -8 ------- Run | Yrd Mat Mat Min Mat Gar Active Infowar (turns) 279 | . . 108 . 24 147 Sensors 279 | . . 108 . 24 147 Robot Analysis Total . | . . . . . . Derelict Logs Recovered 1 | . . . 1 . . Drone Launches . | . . . . . . Drone Recoveries . | . . . . . . Exploration | -11 -10 -9 -9 -8 -8 ------------- Run | Yrd Mat Mat Min Mat Gar Turns Passed 7097 | 43 4873 554 42 34 1551 Spaces Moved 3613 | 40 2577 202 33 17 744 Core 123 | 20 . 77 . . 26 Treads 2265 | . 2213 52 . . . Legs 1225 | 20 364 73 33 17 718 Wheels . | . . . . . . Hover . | . . . . . . Flight . | . . . . . . Fastest Speed 50 | 50 120 100 120 120 100 Average Speed 155 | 85 154 190 120 169 156 Slowest Speed 300 | 120 160 300 120 190 250 Overloaded Moves . | . . . . . . Propulsion Burnouts . | . . . . . . Robots Hopped . | . . . . . . Potential Cave-ins 1 | . 1 . . . . Cave-ins Triggered . | . . . . . . Exploration Rate (%) 35 | 4 96 26 9 3 75 Regions Visited 5 Branch Regions 1 Pre-discovered Areas . | . . . . . . Known Exits Taken 4 | . 1 1 1 1 . Unknown Exits Taken 1 | 1 . . . . . Scrap Searched . | . . . . . . Spaces Dug 90 | . 90 . . . . Terrain Destroyed 674 | . 638 32 . . 4 Melee . | . . . . . . Projectile 1 | . 1 . . . . AOE 673 | . 637 32 . . 4 Terrain Rammed 1 | . . . . . 1 Walls Destroyed . | . . . . . . Machines Disabled . | . . . . . . Actions | -11 -10 -9 -9 -8 -8 --------- Run | Yrd Mat Mat Min Mat Gar Total 4416 | 49 3079 290 33 21 944 Wait 233 | . 180 19 . . 34 Move 3609 | 39 2576 201 32 17 744 Hop . | . . . . . . Pick Up 37 | 5 14 8 . . 10 Fast Attach 20 | . 4 9 . . 7 Attach 23 | 5 6 3 . 2 7 Detach 1 | . 1 . . . . Swap 18 | . 10 3 . 2 3 Drop 16 | . 4 8 . . 4 Fire 420 | . 284 39 1 . 96 Melee . | . . . . . . Ram 1 | . . . . . 1 Kick . | . . . . . . Crush . | . . . . . . Escape Stasis 27 | . . . . . 27 Rewire 10 | . . . . . 10 Trap 1 | . . . . . 1 Miscellaneous . | . . . . . . Route ------- -11/Scrapyard -10/Materials (discovered 4 exits: *Mat x3 / [*Min]) -9/Materials -9/Mines -8/Materials -8/Garrison (discovered 3 exits: [*Mat x3]) History --------- Turn | Location | Event 5 | -11/Scrapyard | Discovered new exit (range 14) 44 | -11/Scrapyard | Entered Materials 186 | -10/Materials | Discovered new exit (range 8) 334 | -10/Materials | Build established: Mutant 411 | -10/Materials | Discovered new exit (range 15) 513 | -10/Materials | Discovered new exit (range 4) 914 | -10/Materials | Discovered new exit (range 11) 1644 | -10/Materials | Derelicts attacked the area 1901 | -10/Materials | Repaired Lgt. Treads 1928 | -10/Materials | Repaired Grenade Launcher 2193 | -10/Materials | Core integrity fell below 50% 4910 | -10/Materials | Identified exit to Materials 4915 | -10/Materials | Core integrity fell below 20% 4917 | -10/Materials | Entered another Materials area 4917 | -9/Materials | Evolved 2 slots: Utility x1, Weapon x1 5423 | -9/Materials | Discovered new exit (range 15) 5469 | -9/Materials | Identified exit to Mines 5471 | -9/Materials | Entered Mines 5477 | -9/Mines | Discovered new exit (range 15) 5492 | -9/Mines | Learned 4 Materials zone layouts 5512 | -9/Mines | Identified exit to Materials 5513 | -9/Mines | Entered Materials 5513 | -8/Materials | Evolved 2 slots: Utility x2 5547 | -8/Materials | Identified exit to Garrison 5547 | -8/Materials | Entered Garrison 5580 | -8/Garrison | Installed Relay Interface Framework 5597 | -8/Garrison | Triggered checkpoint 5939 | -8/Garrison | Triggered checkpoint 5981 | -8/Garrison | Build established: Scavenger-Tank 6041 | -8/Garrison | Triggered checkpoint 6102 | -8/Garrison | Lost 6 parts (1p2n2u1w) 6143 | -8/Garrison | Lost 3 parts (1n2w) 6261 | -8/Garrison | Discovered new exit (range 11) 6277 | -8/Garrison | Triggered checkpoint 6380 | -8/Garrison | Build established: Scavenger-Gunner 6512 | -8/Garrison | Garrison Relay disabled 6519 | -8/Garrison | Triggered checkpoint 6570 | -8/Garrison | Lost 3 parts (3w) 6643 | -8/Garrison | Discovered new exit (range 10) 6859 | -8/Garrison | Build established: Scavenger-Mutant 6910 | -8/Garrison | Triggered checkpoint 6919 | -8/Garrison | Core integrity fell below 50% 6967 | -8/Garrison | Discovered new exit (range 13) 7070 | -8/Garrison | Triggered checkpoint 7095 | -8/Garrison | Core integrity fell below 20% 7098 | -8/Garrison | Destroyed by D-53 Grenadier with Mini Grenade Launcher Last Messages --------------- Destroyed Particle Gun. G-47 Trooper destroyed. Acquired 47 matter. EXIT=FOUND System corrupted: Matter fused (-5). System corrupted: Substantial component data lost. Beams of light sweep through the air. An alarm sounds. System corrupted: Lgt. Assault Rifle rejected. Acquired Lgt. Assault Rifle. The unstable cave ceiling collapses. Carbon-fiber Leg destroyed. Lgt. Assault Rifle destroyed. I-25 Savior destroyed. The unstable cave ceiling collapses. Dropped Hellfire Trap. Installed Hellfire Trap. Lgt. Assault Rifle destroyed. Dropped Cld. Ion Engine. Map ----- +----------------------------------------------------+ | ??# ##?????###?????????# # # #???? | | ??# T#????? T#?????????# #???? | | ??# ##????? "?????????# # #????? | | ??# #?????? "?????????# ## ##????? | | ??# #?????? #?????????# #?###?????? | | ??# ######## #########?# #?????????? | | ??# #?# #?????????? | | ??# #?# #?????????? | | ??# #?# #?????????? | | ??# #?# #?????????? | | ??# #?# #?????????? | | ??# #?# #?????????? | | ??# #?# #?##??????? | | ??# ### ## ??????? | | ??# # # #??????? | | ??# < ???????? | | ??# ???????? | | ??# ## ?#??????? | | ??# # ###????? | | ??# ## # ?????? | | ??# # #??????? | | ??# # #??????? | | ??# ##?????? | | ??# #?????? | | ??# ##?????? | | ??##############?????# @ #??????? | | ????????????????????# #??????? | | ????????????????????#####d #??????? | | ???????????????????????? ##??????? | | ???????????????????????? #???????? | | ??????????????????????? ###???????? | | ???????????????????????## #?????????? | | ????????????????????????# #?????????? | | ????????????????????????# ?????????? | | ????????????????????????# ?????????? | | ????????????????????????# ?????????? | | ????????????????????????? #?????????? | | ?????????????????????????###?????????? | | ?????????????????????????????????????? | | ?????????????????????????????????????? | | ?????????????????????????????????????? | | | | | | | | | | | | | | | | | | | +----------------------------------------------------+ Best States ------------- Heat Dissipation 31 Energy Generation 23 Energy Capacity 280 Matter Stores 300 Matter Capacity 300 Sight Range 16 Robot Scan Range 14 Terrain Scan Density 10 Armor Coverage 150 Propulsion Shielding 66 Evasion (%) 55 Melee Accuracy 5 Target Analysis 5 Recoil Reduction 2 Offensive Hacking 10 Item Schematics ----------------- Core Shielding | -10/Materials | Hacked Robot Schematics ------------------ None Fabricated ------------ Nothing Repaired ---------- Lgt. Treads | 14% | -10/Materials Grenade Launcher | 31% | -10/Materials Studied --------- None Alien Tech Used ----------------- None Achievements -------------- None Challenges ------------ None Game ------ Seed ArmoredIonLegs Manual? 0 Play Time 00:36:47 Cumulative 229.6 hours Start 2026.01.29 @ 16:33:27 End 2026.01.31 @ 12:14:04 Sessions 1 Manual Loads 0 Difficulty Rogue Special Mode None Game No. 642 Rogue 641 Adventurer 1 Explorer 0 Win Type - Total 0 Types 0/0/0/0/0/0/0/0/0/0 Lore% 65 Gallery% 63 Achievement% 39 Wizard Run 0 Options --------- Layout 1 ASCII 0 Keyboard 0 Movement Mouse Keybinds 0 Fullscreen 1 Font 24/Smallcaps Map View 50x35 Zoom Use 0% Tactical HUD 0 Map Filters NONE Filters NONE Steam 1 RUN: 0ef3c57d-fba7-4f40-8d9c-a9c61f3e0d8e